fUST/lending_fUST_20260507
["ID","MTS","AMOUNT","RATE_DAILY","PERIOD"]
[421740842,1778087445000,-500.0,0.00014794,2]
[421740807,1778087445000,-711.61,0.0001452,2]
[421740804,1778087445000,-924.46,0.0001452,2]
[421740814,1778087445000,-1645.4915185,0.000146,2]
[421740816,1778087445000,-645.0,0.00014613,2]
[421740810,1778087445000,-500.0,0.0001452,2]
[421740809,1778087445000,-500.0,0.0001452,2]
[421740808,1778087445000,-1129.07,0.0001452,2]
[421740812,1778087445000,-561.05,0.0001452,2]
[421740811,1778087445000,-500.0,0.0001452,2]
[421740817,1778087445000,-442.0,0.00014613,2]
[421740815,1778087445000,-500.0,0.00014608,2]
[421740813,1778087445000,-705.37816276,0.00014542,30]
[421740825,1778087445000,-500.0,0.00014794,2]
[421740843,1778087445000,-500.0,0.00014794,2]
[421740852,1778087445000,-637.38719008,0.00014794,2]
[421740833,1778087445000,-843.57,0.00014794,2]
[421740863,1778087445000,-812.37626328,0.00014922,7]
[421740864,1778087445000,-2052.50137541,0.00014922,7]
[421740841,1778087445000,-568.71,0.00014794,2]
[421740869,1778087445000,-735.89369536,0.00014995,30]
[421740860,1778087445000,-779.62103763,0.000149,2]
[421740866,1778087445000,-500.0,0.00014973,2]
[421740872,1778087445000,-1789.0,0.00015,3]
[421740870,1778087445000,-160.41732637,0.00014999,2]
[421740871,1778087445000,-160.0,0.00014999,2]
[421740875,1778087445000,-1639731.4408994,0.00015,2]
[421740873,1778087445000,-1000.0,0.00015,3]
[421740878,1778087445000,-1031.43763377,0.00015,2]
[421740877,1778087445000,-19267.55247022,0.00015,2]
[421740879,1778087445000,-171514.98442683,0.00015,2]
[421740876,1778087445000,-50000.0,0.00015,2]
[421740908,1778087445000,-44700.69640077,0.00015,2]
[421740874,1778087445000,-549.69745019,0.00015,3]
[421740865,1778087445000,-200.0,0.00014959,2]
[421740861,1778087445000,-779.62103763,0.000149,2]
[421740862,1778087445000,-8140.64968035,0.000149,2]
[421740837,1778087445000,-500.0,0.00014794,2]
[421740844,1778087445000,-293.31681271,0.00014794,2]
[421740846,1778087445000,-500.0,0.00014794,2]
[421740867,1778087445000,-500.0,0.00014973,2]
[421740848,1778087445000,-1379.57,0.00014794,2]
[421740854,1778087445000,-500.0,0.00014794,2]
[421740856,1778087445000,-30000.0,0.0001487,3]
[421740855,1778087445000,-561.05,0.00014794,2]
[421740845,1778087445000,-850.3,0.00014794,2]
[421740847,1778087445000,-924.46,0.00014794,2]
[421740851,1778087445000,-1129.07,0.00014794,2]
[421740849,1778087445000,-1375.47,0.00014794,2]
[421740850,1778087445000,-711.61,0.00014794,2]
[421740858,1778087445000,-602.31434809,0.000149,2]
[421740859,1778087445000,-779.62103764,0.000149,2]
[421740857,1778087445000,-4156.4,0.000149,2]
[421740868,1778087445000,-500.0,0.00014973,2]
[421740853,1778087445000,-500.0,0.00014794,2]
[421740930,1778087446000,-589.202864,0.00014959,2]
[421740929,1778087446000,-684.587136,0.00014959,2]
[421740931,1778087446000,-20671.40296711,0.00015,2]
[421740955,1778088499000,-279.61012106,8.512e-05,2]
[421741065,1778088634000,-1509.01105294,8.427e-05,2]
[421741067,1778088635000,-1215.88244051,8.427e-05,2]
[421741066,1778088635000,-2094.96246121,8.427e-05,2]
[421741070,1778088635000,-261.85955981,8.555e-05,2]
[421741068,1778088635000,-180.14404534,8.427e-05,2]
[421741071,1778088635000,-151.0,9.603e-05,2]
[421741069,1778088635000,-491.33867724,8.512e-05,2]
[421741074,1778088635000,-300.0,9.654e-05,2]
[421741073,1778088635000,-300.0,9.654e-05,2]
[421741077,1778088635000,-1896.30690607,9.656e-05,2]
[421741076,1778088635000,-300.0,9.654e-05,2]
[421741075,1778088635000,-300.0,9.654e-05,2]
[421741078,1778088635000,-1093.98275846,9.656e-05,2]
[421741072,1778088635000,-1200.0,9.653e-05,2]
[421741102,1778088638000,-500.0,0.00010684,2]
[421741106,1778088638000,-893.0,0.00010684,2]
[421741108,1778088638000,-893.0,0.00010684,2]
[421741110,1778088638000,-893.0,0.00010684,2]
[421741112,1778088638000,-893.0,0.00010684,2]
[421741111,1778088638000,-893.0,0.00010684,2]
[421741113,1778088638000,-893.0,0.00010684,2]
[421741120,1778088638000,-500.0,0.00010958,2]
[421741109,1778088638000,-893.0,0.00010684,2]
[421741115,1778088638000,-893.0,0.00010684,2]
[421741117,1778088638000,-500.0,0.00010958,2]
[421741116,1778088638000,-911.0012822,0.00010684,2]
[421741118,1778088638000,-500.0,0.00010958,2]
[421741119,1778088638000,-500.0,0.00010958,2]
[421741122,1778088638000,-500.0,0.00010958,2]
[421741128,1778088638000,-500.0,0.00010958,2]
[421741121,1778088638000,-500.0,0.00010958,2]
[421741124,1778088638000,-500.0,0.00010958,2]
[421741130,1778088638000,-515.8,0.00010958,2]
[421741114,1778088638000,-893.0,0.00010684,2]
[421741103,1778088638000,-893.0,0.00010684,2]
[421741101,1778088638000,-893.0,0.00010684,2]
[421741099,1778088638000,-893.0,0.00010684,2]
[421741082,1778088638000,-7009.71033547,9.656e-05,2]
[421741084,1778088638000,-1680.0,0.00010618,2]
[421741085,1778088638000,-420.0,0.00010619,2]
[421741086,1778088638000,-420.0,0.00010619,2]
[421741083,1778088638000,-308.99428057,0.00010555,2]
[421741087,1778088638000,-420.0,0.00010619,2]
[421741089,1778088638000,-893.0,0.00010684,2]
[421741090,1778088638000,-893.0,0.00010684,2]
[421741094,1778088638000,-893.0,0.00010684,2]
[421741098,1778088638000,-893.0,0.00010684,2]
[421741091,1778088638000,-893.0,0.00010684,2]
[421741092,1778088638000,-893.0,0.00010684,2]
[421741093,1778088638000,-893.0,0.00010684,2]
[421741095,1778088638000,-893.0,0.00010684,2]
[421741097,1778088638000,-500.0,0.00010684,2]
[421741107,1778088638000,-893.0,0.00010684,2]
[421741100,1778088638000,-500.0,0.00010684,2]
[421741105,1778088638000,-893.0,0.00010684,2]
[421741096,1778088638000,-893.0,0.00010684,2]
[421741123,1778088638000,-500.0,0.00010958,2]
[421741088,1778088638000,-420.0,0.00010619,2]
[421741132,1778088638000,-500.0,0.00010958,2]
[421741104,1778088638000,-321.37605947,0.00010684,2]
[421741125,1778088638000,-500.0,0.00010958,2]
[421741147,1778088638000,-500.0,0.00010958,2]
[421741158,1778088638000,-151.0,0.00011225,2]
[421741149,1778088638000,-511.59,0.00010958,2]
[421741152,1778088638000,-500.0,0.00010958,2]
[421741151,1778088638000,-500.0,0.00010958,2]
[421741150,1778088638000,-500.0,0.00010958,2]
[421741160,1778088638000,-151.0,0.00011225,2]
[421741164,1778088638000,-151.0,0.00011225,2]
[421741166,1778088638000,-151.0,0.00011225,2]
[421741154,1778088638000,-181.72608776,0.00011225,2]
[421741172,1778088638000,-151.0,0.00011225,2]
[421741161,1778088638000,-151.0,0.00011225,2]
[421741163,1778088638000,-151.0,0.00011225,2]
[421741165,1778088638000,-151.0,0.00011225,2]
[421741170,1778088638000,-151.0,0.00011225,2]
[421741169,1778088638000,-151.0,0.00011225,2]
[421741167,1778088638000,-151.0,0.00011225,2]
[421741168,1778088638000,-151.0,0.00011225,2]
[421741173,1778088638000,-151.0,0.00011225,2]
[421741126,1778088638000,-500.0,0.00010958,2]
[421741171,1778088638000,-151.0,0.00011225,2]
[421741156,1778088638000,-151.0,0.00011225,2]
[421741162,1778088638000,-151.0,0.00011225,2]
[421741148,1778088638000,-500.0,0.00010958,2]
[421741129,1778088638000,-954.09,0.00010958,2]
[421741159,1778088638000,-151.0,0.00011225,2]
[421741127,1778088638000,-508.06469156,0.00010958,2]
[421741131,1778088638000,-500.0,0.00010958,2]
[421741136,1778088638000,-500.0,0.00010958,2]
[421741133,1778088638000,-500.0,0.00010958,2]
[421741138,1778088638000,-500.0,0.00010958,2]
[421741137,1778088638000,-500.0,0.00010958,2]
[421741142,1778088638000,-500.0,0.00010958,2]
[421741134,1778088638000,-500.0,0.00010958,2]
[421741135,1778088638000,-500.0,0.00010958,2]
[421741139,1778088638000,-4465.86,0.00010958,2]
[421741141,1778088638000,-500.0,0.00010958,2]
[421741143,1778088638000,-539.99,0.00010958,2]
[421741144,1778088638000,-500.0,0.00010958,2]
[421741145,1778088638000,-539.73906276,0.00010958,2]
[421741153,1778088638000,-500.0,0.00010958,2]
[421741155,1778088638000,-151.0,0.00011225,2]
[421741140,1778088638000,-500.0,0.00010958,2]
[421741146,1778088638000,-500.0,0.00010958,2]
[421741157,1778088638000,-151.0,0.00011225,2]
[421741199,1778088639000,-500.0,0.00011232,2]
[421741212,1778088639000,-954.09,0.00011506,2]
[421741222,1778088639000,-500.0,0.00011506,2]
[421741205,1778088639000,-500.0,0.00011505,2]
[421741202,1778088639000,-500.0,0.00011232,2]
[421741200,1778088639000,-500.0,0.00011232,2]
[421741203,1778088639000,-161.57016804,0.00011362,2]
[421741204,1778088639000,-160.0,0.00011362,2]
[421741229,1778088639000,-400.2403762,0.00011506,2]
[421741224,1778088639000,-500.0,0.00011506,2]
[421741206,1778088639000,-618.18237112,0.00011505,2]
[421741221,1778088639000,-4465.86,0.00011506,2]
[421741215,1778088639000,-500.0,0.00011506,2]
[421741218,1778088639000,-500.0,0.00011506,2]
[421741211,1778088639000,-500.0,0.00011506,2]
[421741213,1778088639000,-515.8,0.00011506,2]
[421741223,1778088639000,-500.0,0.00011506,2]
[421741217,1778088639000,-500.0,0.00011506,2]
[421741214,1778088639000,-500.0,0.00011506,2]
[421741220,1778088639000,-500.0,0.00011506,2]
[421741219,1778088639000,-500.0,0.00011506,2]
[421741225,1778088639000,-539.99,0.00011506,2]
[421741226,1778088639000,-500.0,0.00011506,2]
[421741227,1778088639000,-500.0,0.00011506,2]
[421741208,1778088639000,-480.53775589,0.00011505,2]
[421741216,1778088639000,-500.0,0.00011506,2]
[421741207,1778088639000,-500.0,0.00011505,2]
[421741180,1778088639000,-515.8,0.00011232,2]
[421741201,1778088639000,-500.0,0.00011232,2]
[421741184,1778088639000,-500.0,0.00011232,2]
[421741174,1778088639000,-171.13398406,0.00011225,2]
[421741185,1778088639000,-500.0,0.00011232,2]
[421741181,1778088639000,-500.0,0.00011232,2]
[421741175,1778088639000,-500.0,0.00011232,2]
[421741176,1778088639000,-500.0,0.00011232,2]
[421741177,1778088639000,-238.00247814,0.00011232,2]
[421741183,1778088639000,-500.0,0.00011232,2]
[421741178,1778088639000,-500.0,0.00011232,2]
[421741179,1778088639000,-954.09,0.00011232,2]
[421741182,1778088639000,-500.0,0.00011232,2]
[421741186,1778088639000,-500.0,0.00011232,2]
[421741188,1778088639000,-319.52732382,0.00011232,2]
[421741196,1778088639000,-500.0,0.00011232,2]
[421741190,1778088639000,-500.0,0.00011232,2]
[421741193,1778088639000,-539.99,0.00011232,2]
[421741191,1778088639000,-500.0,0.00011232,2]
[421741189,1778088639000,-4465.86,0.00011232,2]
[421741197,1778088639000,-500.0,0.00011232,2]
[421741194,1778088639000,-500.0,0.00011232,2]
[421741187,1778088639000,-500.0,0.00011232,2]
[421741198,1778088639000,-511.59,0.00011232,2]
[421741192,1778088639000,-500.0,0.00011232,2]
[421741195,1778088639000,-500.0,0.00011232,2]
[421741209,1778088639000,-278.20873498,0.00011506,2]
[421741210,1778088639000,-500.0,0.00011506,2]
[421741230,1778088639000,-500.0,0.00011506,2]
[421741253,1778088639000,-500.0,0.0001178,2]
[421741233,1778088639000,-500.0,0.00011506,2]
[421741263,1778088639000,-174.99746855,0.00012054,2]
[421741260,1778088639000,-500.0,0.00012054,2]
[421741266,1778088639000,-500.0,0.00012054,2]
[421741277,1778088639000,-500.0,0.00012054,2]
[421741267,1778088639000,-500.0,0.00012054,2]
[421741269,1778088639000,-500.0,0.00012054,2]
[421741274,1778088639000,-539.99,0.00012054,2]
[421741268,1778088639000,-500.0,0.00012054,2]
[421741271,1778088639000,-500.0,0.00012054,2]
[421741270,1778088639000,-4465.86,0.00012054,2]
[421741276,1778088639000,-500.0,0.00012054,2]
[421741272,1778088639000,-500.0,0.00012054,2]
[421741258,1778088639000,-500.0,0.0001178,2]
[421741275,1778088639000,-500.0,0.00012054,2]
[421741278,1778088639000,-511.59,0.00012054,2]
[421741280,1778088639000,-500.0,0.00012054,2]
[421741279,1778088639000,-500.0,0.00012054,2]
[421741281,1778088639000,-500.0,0.00012054,2]
[421741282,1778088639000,-230.0,0.00012055,3]
[421741284,1778088639000,-185.0,0.00012103,2]
[421741283,1778088639000,-1398.263,0.00012103,2]
[421741288,1778088639000,-515.8,0.00012328,2]
[421741286,1778088639000,-500.0,0.00012328,2]
[421741285,1778088639000,-442.0,0.00012103,2]
[421741287,1778088639000,-954.09,0.00012328,2]
[421741232,1778088639000,-500.0,0.00011506,2]
[421741273,1778088639000,-500.0,0.00012054,2]
[421741257,1778088639000,-500.0,0.0001178,2]
[421741255,1778088639000,-500.0,0.0001178,2]
[421741259,1778088639000,-500.0,0.0001178,2]
[421741231,1778088639000,-511.59,0.00011506,2]
[421741234,1778088639000,-500.0,0.00011506,2]
[421741236,1778088639000,-600.0,0.00011735,2]
[421741235,1778088639000,-187.44654885,0.0001168,2]
[421741240,1778088639000,-515.8,0.0001178,2]
[421741237,1778088639000,-500.0,0.0001178,2]
[421741238,1778088639000,-409.99424152,0.0001178,2]
[421741242,1778088639000,-500.0,0.0001178,2]
[421741244,1778088639000,-500.0,0.0001178,2]
[421741252,1778088639000,-539.99,0.0001178,2]
[421741243,1778088639000,-500.0,0.0001178,2]
[421741241,1778088639000,-500.0,0.0001178,2]
[421741239,1778088639000,-954.09,0.0001178,2]
[421741249,1778088639000,-500.0,0.0001178,2]
[421741245,1778088639000,-500.0,0.0001178,2]
[421741261,1778088639000,-954.09,0.00012054,2]
[421741265,1778088639000,-500.0,0.00012054,2]
[421741256,1778088639000,-511.59,0.0001178,2]
[421741264,1778088639000,-377.34518013,0.00012054,2]
[421741254,1778088639000,-500.0,0.0001178,2]
[421741262,1778088639000,-515.8,0.00012054,2]
[421741250,1778088639000,-500.0,0.0001178,2]
[421741251,1778088639000,-500.0,0.0001178,2]
[421741247,1778088639000,-500.0,0.0001178,2]
[421741248,1778088639000,-4465.86,0.0001178,2]
[421741246,1778088639000,-500.0,0.0001178,2]
[421741350,1778088640000,-450.6090158,0.00012602,2]
[421741364,1778088640000,-379.23416231,0.00012876,2]
[421741362,1778088640000,-500.0,0.00012876,2]
[421741360,1778088640000,-500.0,0.00012876,2]
[421741358,1778088640000,-515.8,0.00012876,2]
[421741348,1778088640000,-500.0,0.00012602,2]
[421741340,1778088640000,-500.0,0.00012602,2]
[421741342,1778088640000,-500.0,0.00012602,2]
[421741346,1778088640000,-500.0,0.00012602,2]
[421741336,1778088640000,-500.0,0.00012602,2]
[421741331,1778088640000,-4465.86,0.00012602,2]
[421741344,1778088640000,-511.59,0.00012602,2]
[421741367,1778088640000,-500.0,0.00012876,2]
[421741379,1778088640000,-500.0,0.00012876,2]
[421741369,1778088640000,-4465.86,0.00012876,2]
[421741352,1778088640000,-187.44654884,0.00012753,2]
[421741371,1778088640000,-500.0,0.00012876,2]
[421741354,1778088640000,-500.0,0.00012876,2]
[421741356,1778088640000,-954.09,0.00012876,2]
[421741375,1778088640000,-539.99,0.00012876,2]
[421741383,1778088640000,-500.0,0.00012876,2]
[421741377,1778088640000,-500.0,0.00012876,2]
[421741373,1778088640000,-500.0,0.00012876,2]
[421741385,1778088640000,-500.0,0.00012876,2]
[421741381,1778088640000,-511.59,0.00012876,2]
[421741338,1778088640000,-539.99,0.00012602,2]
[421741365,1778088640000,-500.0,0.00012876,2]
[421741329,1778088640000,-500.0,0.00012602,2]
[421741315,1778088640000,-500.0,0.00012602,2]
[421741333,1778088640000,-500.0,0.00012602,2]
[421741289,1778088640000,-500.0,0.00012328,2]
[421741301,1778088640000,-500.0,0.00012328,2]
[421741290,1778088640000,-500.0,0.00012328,2]
[421741302,1778088640000,-511.59,0.00012328,2]
[421741291,1778088640000,-500.0,0.00012328,2]
[421741294,1778088640000,-4465.86,0.00012328,2]
[421741292,1778088640000,-500.0,0.00012328,2]
[421741293,1778088640000,-500.0,0.00012328,2]
[421741297,1778088640000,-500.0,0.00012328,2]
[421741299,1778088640000,-491.74146253,0.00012328,2]
[421741296,1778088640000,-317.0396893,0.00012328,2]
[421741300,1778088640000,-500.0,0.00012328,2]
[421741298,1778088640000,-539.99,0.00012328,2]
[421741304,1778088640000,-500.0,0.00012328,2]
[421741305,1778088640000,-500.0,0.00012328,2]
[421741387,1778088640000,-1514.29963132,0.000129,2]
[421741303,1778088640000,-500.0,0.00012328,2]
[421741307,1778088640000,-213.19,0.00012329,2]
[421741306,1778088640000,-255.82,0.00012329,2]
[421741317,1778088640000,-954.09,0.00012602,2]
[421741319,1778088640000,-515.8,0.00012602,2]
[421741313,1778088640000,-356.12900134,0.00012555,2]
[421741309,1778088640000,-177.66,0.00012329,2]
[421741311,1778088640000,-888.3,0.00012329,2]
[421741322,1778088640000,-500.0,0.00012602,2]
[421741324,1778088640000,-500.0,0.00012602,2]
[421741326,1778088640000,-500.0,0.00012602,2]
[421741327,1778088640000,-500.0,0.00012602,2]
[421741389,1778088640000,-1514.29963128,0.000129,2]
[421741295,1778088640000,-500.0,0.00012328,2]
[421741395,1778088640000,-253.016,0.0001315,2]
[421741461,1778088640000,-500.0,0.00013698,2]
[421741451,1778088640000,-500.0,0.00013424,2]
[421741449,1778088640000,-500.0,0.00013424,2]
[421741465,1778088640000,-500.0,0.00013698,2]
[421741447,1778088640000,-539.99,0.00013424,2]
[421741463,1778088640000,-500.0,0.00013698,2]
[421741467,1778088640000,-500.0,0.00013698,2]
[421741469,1778088640000,-500.0,0.00013698,2]
[421741472,1778088640000,-500.0,0.00013698,2]
[421741470,1778088640000,-500.0,0.00013698,2]
[421741474,1778088640000,-500.0,0.00013698,2]
[421741480,1778088640000,-500.0,0.00013698,2]
[421741482,1778088640000,-515.8,0.00013698,2]
[421741476,1778088640000,-500.0,0.00013698,2]
[421741478,1778088640000,-500.0,0.00013698,2]
[421741484,1778088640000,-500.0,0.00013698,2]
[421741490,1778088640000,-4465.86,0.00013698,2]
[421741488,1778088640000,-486.25252699,0.00013698,2]
[421741498,1778088640000,-500.0,0.00013698,2]
[421741491,1778088640000,-500.0,0.00013698,2]
[421741502,1778088640000,-500.0,0.00013698,2]
[421741504,1778088640000,-500.0,0.00013698,2]
[421741508,1778088640000,-1749.263651,0.00013699,2]
[421741500,1778088640000,-511.59,0.00013698,2]
[421741506,1778088640000,-180.12969338,0.00013699,2]
[421741495,1778088640000,-500.0,0.00013698,2]
[421741494,1778088640000,-539.99,0.00013698,2]
[421741445,1778088640000,-618.49,0.00013424,2]
[421741459,1778088640000,-954.09,0.00013698,2]
[421741486,1778088640000,-500.0,0.00013698,2]
[421741453,1778088640000,-511.59,0.00013424,2]
[421741457,1778088640000,-500.0,0.00013424,2]
[421741391,1778088640000,-720.0,0.00012909,2]
[421741408,1778088640000,-500.0,0.0001315,2]
[421741397,1778088640000,-500.0,0.0001315,2]
[421741410,1778088640000,-4465.86,0.0001315,2]
[421741413,1778088640000,-500.0,0.0001315,2]
[421741400,1778088640000,-515.8,0.0001315,2]
[421741415,1778088640000,-539.99,0.0001315,2]
[421741398,1778088640000,-954.09,0.0001315,2]
[421741402,1778088640000,-500.0,0.0001315,2]
[421741417,1778088640000,-500.0,0.0001315,2]
[421741411,1778088640000,-500.0,0.0001315,2]
[421741406,1778088640000,-500.0,0.0001315,2]
[421741404,1778088640000,-500.0,0.0001315,2]
[421741393,1778088640000,-1514.29963128,0.00013119,2]
[421741441,1778088640000,-4465.86,0.00013424,2]
[421741423,1778088640000,-500.0,0.0001315,2]
[421741421,1778088640000,-511.59,0.0001315,2]
[421741425,1778088640000,-500.0,0.0001315,2]
[421741426,1778088640000,-546.03,0.00013424,2]
[421741429,1778088640000,-954.09,0.00013424,2]
[421741431,1778088640000,-515.8,0.00013424,2]
[421741432,1778088640000,-500.0,0.00013424,2]
[421741439,1778088640000,-202.72283211,0.00013424,2]
[421741434,1778088640000,-500.0,0.00013424,2]
[421741419,1778088640000,-500.0,0.0001315,2]
[421741436,1778088640000,-500.0,0.00013424,2]
[421741443,1778088640000,-500.0,0.00013424,2]
[421741455,1778088640000,-500.0,0.00013424,2]
[421741549,1778088641000,-200.0,0.0001399,2]
[421741567,1778088641000,-500.0,0.00014246,2]
[421741542,1778088641000,-500.0,0.00013972,2]
[421741561,1778088641000,-500.0,0.00014246,2]
[421741544,1778088641000,-511.59,0.00013972,2]
[421741559,1778088641000,-515.8,0.00014246,2]
[421741548,1778088641000,-500.0,0.00013972,2]
[421741575,1778088641000,-511.59,0.00014246,2]
[421741563,1778088641000,-500.0,0.00014246,2]
[421741583,1778088641000,-954.09,0.0001452,2]
[421741569,1778088641000,-539.99,0.00014246,2]
[421741573,1778088641000,-404.59990383,0.00014246,2]
[421741557,1778088641000,-500.0,0.00014246,2]
[421741579,1778088641000,-500.0,0.00014246,2]
[421741585,1778088641000,-500.0,0.0001452,2]
[421741546,1778088641000,-500.0,0.00013972,2]
[421741555,1778088641000,-954.09,0.00014246,2]
[421741532,1778088641000,-500.0,0.00013972,2]
[421741551,1778088641000,-200.0,0.00014,2]
[421741512,1778088641000,-1000.0,0.00013699,2]
[421741510,1778088641000,-1000.0,0.00013699,2]
[421741514,1778088641000,-187.44654884,0.00013827,2]
[421741516,1778088641000,-201.64131494,0.00013877,2]
[421741524,1778088641000,-954.09,0.00013972,2]
[421741530,1778088641000,-500.0,0.00013972,2]
[421741553,1778088641000,-864.0,0.00014199,2]
[421741520,1778088641000,-500.0,0.00013969,2]
[421741522,1778088641000,-396.94339319,0.00013969,2]
[421741525,1778088641000,-500.0,0.00013972,2]
[421741534,1778088641000,-4465.86,0.00013972,2]
[421741536,1778088641000,-500.0,0.00013972,2]
[421741538,1778088641000,-539.99,0.00013972,2]
[421741540,1778088641000,-500.0,0.00013972,2]
[421741527,1778088641000,-515.8,0.00013972,2]
[421741518,1778088641000,-1198.87391118,0.00013969,2]
[421741577,1778088641000,-500.0,0.00014246,2]
[421741581,1778088641000,-1514.29963128,0.0001425,2]
[421741626,1778088641000,-4465.86,0.00014794,2]
[421741632,1778088641000,-500.0,0.00014794,2]
[421741628,1778088641000,-500.0,0.00014794,2]
[421741630,1778088641000,-539.99,0.00014794,2]
[421741634,1778088641000,-511.59,0.00014794,2]
[421741642,1778088641000,-152.0,0.00014922,7]
[421741646,1778088641000,-189.34877201,0.00014999,2]
[421741635,1778088641000,-500.0,0.00014794,2]
[421741647,1778088641000,-68025.02142108,0.00015,2]
[421741639,1778088641000,-389.81051881,0.000149,2]
[421741637,1778088641000,-187.44654884,0.000149,2]
[421741640,1778088641000,-7326.58471227,0.000149,2]
[421741650,1778088641000,-1459413.40228312,0.00015,2]
[421741669,1778088641000,-279.61012106,0.00015,2]
[421741571,1778088641000,-500.0,0.00014246,2]
[421741615,1778088641000,-390.20595981,0.00014794,2]
[421741623,1778088641000,-592.18331735,0.00014794,2]
[421741644,1778088641000,-6470.0,0.00014998,2]
[421741617,1778088641000,-515.8,0.00014794,2]
[421741565,1778088641000,-4465.86,0.00014246,2]
[421741619,1778088641000,-500.0,0.00014794,2]
[421741589,1778088641000,-500.0,0.0001452,2]
[421741591,1778088641000,-500.0,0.0001452,2]
[421741601,1778088641000,-511.59,0.0001452,2]
[421741603,1778088641000,-500.0,0.0001452,2]
[421741605,1778088641000,-297.39485938,0.0001452,2]
[421741593,1778088641000,-4465.86,0.0001452,2]
[421741587,1778088641000,-515.8,0.0001452,2]
[421741599,1778088641000,-500.0,0.0001452,2]
[421741613,1778088641000,-954.09,0.00014794,2]
[421741607,1778088641000,-403.2637221,0.00014555,2]
[421741609,1778088641000,-500.0,0.00014608,2]
[421741611,1778088641000,-1834.18375735,0.000147,2]
[421741597,1778088641000,-539.99,0.0001452,2]
[421741595,1778088641000,-500.0,0.0001452,2]
[421742069,1778088647000,-500.0,0.00010958,2]
[421742071,1778088647000,-500.0,0.00011232,2]
[421742079,1778088647000,-1222.78917157,0.000147,2]
[421742083,1778088647000,-1055.0547264,0.00015,2]
[421742073,1778088647000,-200.0,0.00013485,2]
[421742075,1778088647000,-200.0,0.00013936,2]
[421742077,1778088647000,-200.0,0.00014386,2]
[421742081,1778088647000,-200.0,0.00014837,2]
[421742402,1778088650000,-500.0,0.00012876,2]
[421742404,1778088650000,-500.0,0.0001315,2]
[421742406,1778088650000,-500.0,0.00013424,2]
[421742395,1778088650000,-270.9487983,0.0001178,2]
[421742408,1778088650000,-500.0,0.00013698,2]
[421742394,1778088650000,-500.0,0.00011506,2]
[421742396,1778088650000,-229.0512017,0.0001178,2]
[421742413,1778088650000,-500.0,0.00014794,2]
[421742400,1778088650000,-500.0,0.00012602,2]
[421742398,1778088650000,-500.0,0.00012328,2]
[421742410,1778088650000,-500.0,0.00013972,2]
[421742414,1778088650000,-82708.01578402,0.00015,2]
[421742411,1778088650000,-500.0,0.00014246,2]
[421742412,1778088650000,-500.0,0.0001452,2]
[421742397,1778088650000,-500.0,0.00012054,2]
[421742514,1778089838000,-454.36222613,9.375e-05,2]
[421742513,1778089838000,-4867.71731778,9.281e-05,2]
[421743445,1778090695000,-3183.0,9.005e-05,2]
[421743447,1778090719000,1088.78693591,7.6e-05,2]
[421743572,1778091032000,-420.0,0.00010178,2]